fUSD/lending_fUSD_20250414
["ID","MTS","AMOUNT","RATE_DAILY","PERIOD"]
[358052916,1744672241259,-3129.72,0.00017896,2]
[358052917,1744672241268,-500.0,0.00017896,2]
[358052918,1744672241279,-500.0,0.00017896,2]
[358052919,1744672241289,-500.0,0.00017896,2]
[358052920,1744672241298,-500.0,0.00017896,2]
[358052921,1744672241307,-500.0,0.00017896,2]
[358052922,1744672241317,-1000.0,0.00017896,2]
[358052923,1744672241328,-500.0,0.00017896,2]
[358052924,1744672241338,-500.0,0.00017896,2]
[358052925,1744672241348,-500.0,0.00017896,2]
[358052926,1744672241357,-500.0,0.00017896,2]
[358052927,1744672241367,-500.0,0.00017896,2]
[358052928,1744672241377,-500.0,0.00017896,2]
[358052929,1744672241386,-500.0,0.00017896,2]
[358052930,1744672241395,-500.0,0.00017896,2]
[358052931,1744672241405,-500.0,0.00017896,2]
[358052932,1744672241414,-500.0,0.00017896,2]
[358052933,1744672241424,-500.0,0.00017896,2]
[358052934,1744672241433,-623.37,0.00017896,2]
[358052935,1744672241443,-500.0,0.00017896,2]
[358052936,1744672241453,-500.0,0.00017896,2]
[358052937,1744672241462,-590.26,0.00017896,2]
[358052938,1744672241471,-500.0,0.00017896,2]
[358052939,1744672241480,-481.47,0.00017896,2]
[358052940,1744672241489,-644.75,0.00017896,2]
[358052941,1744672241499,-569.50866005,0.00017896,2]
[358052942,1744672241508,-500.0,0.00017896,2]
[358052943,1744672241518,-500.0,0.00017896,2]
[358052944,1744672241529,-500.0,0.00017896,2]
[358052945,1744672241539,-500.0,0.00017896,2]
[358052946,1744672241548,-146.88870013,0.00017897,2]
[358052947,1744672241558,-500.0,0.00017897,2]
[358052948,1744672241567,-257.88,0.00017897,2]
[358052949,1744672241576,-500.0,0.00017897,2]
[358052950,1744672241586,-500.0,0.00017897,2]
[358052951,1744672241595,-500.0,0.00017897,2]
[358052952,1744672241604,-500.0,0.00017897,2]
[358052953,1744672241613,-500.0,0.00017897,2]
[358052954,1744672241623,-500.0,0.00017897,2]
[358052955,1744672241632,-500.0,0.00017897,2]
[358052956,1744672241641,-175.55,0.00017897,2]
[358052957,1744672241650,-500.0,0.00017897,2]
[358052958,1744672241659,-379.44,0.00017897,2]
[358052959,1744672241669,-562.86,0.00017897,2]
[358052960,1744672241678,-500.0,0.00017897,2]
[358052961,1744672241842,-500.0,0.00017897,2]
[358052962,1744672241852,-500.0,0.00017897,2]
[358052963,1744672241862,-500.0,0.00017897,2]
[358052964,1744672241871,-500.0,0.00017897,2]
[358052965,1744672241880,-172.71,0.00017897,2]
[358052966,1744672241890,-500.0,0.00017897,2]
[358052967,1744672241899,-500.0,0.00017897,2]
[358052968,1744672241909,-265.54952048,0.00017897,2]
[358052969,1744672241919,-500.0,0.00017897,2]
[358052970,1744672241928,-500.0,0.00017897,2]
[358052971,1744672241938,-500.0,0.00017897,2]
[358052972,1744672241947,-500.0,0.00017897,2]
[358052973,1744672241957,-539.92,0.00017897,2]
[358052974,1744672241966,-500.0,0.00017897,2]
[358052975,1744672241976,-500.0,0.00017897,2]
[358052976,1744672241985,-500.0,0.00017897,2]
[358052977,1744672241995,-500.0,0.00017897,2]
[358052978,1744672242005,-500.0,0.00017897,2]
[358052979,1744672242014,-500.0,0.00017897,2]
[358052980,1744672242025,-500.0,0.00017897,2]
[358052981,1744672242034,-500.0,0.00017897,2]
[358052982,1744672242044,-500.0,0.00017897,2]
[358052983,1744672242054,-500.0,0.00017897,2]
[358052984,1744672242063,-523.91,0.00017897,2]
[358052985,1744672242073,-369.48,0.00017897,2]
[358052986,1744672242082,-500.0,0.00017897,2]
[358052987,1744672242093,-309.3219899,0.00017897,2]
[358052988,1744672242103,-500.0,0.00017897,2]
[358052989,1744672242114,-500.0,0.00017897,2]
[358052990,1744672242125,-500.0,0.00017897,2]
[358052991,1744672242140,-500.0,0.00017897,2]
[358052992,1744672242151,-500.0,0.00017897,2]
[358052993,1744672242161,-473.12896291,0.00017897,2]
[358052994,1744672242171,-500.0,0.00017897,2]
[358052995,1744672242181,-500.0,0.00017897,2]
[358052996,1744672242191,-500.0,0.00017897,2]
[358052997,1744672242201,-500.0,0.00017897,2]
[358052998,1744672242211,-500.0,0.00017897,2]
[358052999,1744672242221,-500.0,0.00017897,2]
[358053000,1744672242230,-553.54,0.00017897,2]
[358053001,1744672242240,-500.0,0.00017897,2]
[358053002,1744672242250,-500.0,0.00017897,2]
[358053003,1744672242259,-545.6,0.00017897,2]
[358053004,1744672242268,-500.0,0.00017897,2]
[358053005,1744672242278,-500.0,0.00017897,2]
[358053006,1744672242287,-500.0,0.00017897,2]
[358053007,1744672242296,-500.0,0.00017897,2]
[358053008,1744672242306,-500.0,0.00017897,2]
[358053009,1744672242315,-500.0,0.00017897,2]
[358053010,1744672242324,-500.0,0.00017897,2]
[358053011,1744672242334,-500.0,0.00017897,2]
[358053012,1744672242343,-500.0,0.00017897,2]
[358053013,1744672242353,-500.0,0.00017897,2]
[358053014,1744672242362,-500.0,0.00017897,2]
[358053015,1744672242371,-500.0,0.00017897,2]
[358053016,1744672242381,-500.0,0.00017897,2]
[358053017,1744672242390,-500.0,0.00017897,2]
[358053018,1744672242400,-500.0,0.00017897,2]
[358053019,1744672242409,-500.0,0.00017897,2]
[358053020,1744672242419,-466.3,0.00017897,2]
[358053021,1744672242428,-500.0,0.00017897,2]
[358053022,1744672242440,-500.0,0.00017897,2]
[358053023,1744672242453,-500.0,0.00017897,2]
[358053025,1744672242464,-557.94,0.00017897,2]
[358053026,1744672242474,-252.42,0.00017897,2]
[358053027,1744672242483,-500.0,0.00017897,2]
[358053028,1744672242493,-500.0,0.00017897,2]
[358053029,1744672242502,-500.0,0.00017897,2]
[358053030,1744672242512,-500.0,0.00017897,2]
[358053031,1744672242522,-460.86,0.00017897,2]
[358053032,1744672242532,-432.63911069,0.00017897,2]
[358053033,1744672242541,-500.0,0.00017897,2]
[358053034,1744672242551,-500.0,0.00017897,2]
[358053035,1744672242561,-500.0,0.00017897,2]
[358053036,1744672242571,-500.0,0.00017897,2]
[358053037,1744672242580,-500.0,0.00017897,2]
[358053038,1744672242590,-500.0,0.00017897,2]
[358053039,1744672242600,-500.0,0.00017897,2]
[358053040,1744672242609,-614.02,0.00017897,2]
[358053041,1744672242619,-500.0,0.00017897,2]
[358053042,1744672242628,-500.0,0.00017897,2]
[358053043,1744672242638,-500.0,0.00017897,2]
[358053044,1744672242648,-500.0,0.00017897,2]
[358053045,1744672242658,-500.0,0.00017897,2]
[358053046,1744672242667,-500.0,0.00017897,2]
[358053047,1744672242677,-500.0,0.00017897,2]
[358053048,1744672242687,-500.0,0.00017897,2]
[358053049,1744672242697,-514.2,0.00017897,2]
[358053050,1744672242706,-192.36,0.00017897,2]
[358053051,1744672242716,-500.0,0.00017897,2]
[358053052,1744672242725,-500.0,0.00017897,2]
[358053053,1744672242735,-500.0,0.00017897,2]
[358053054,1744672242744,-500.0,0.00017897,2]
[358053055,1744672242753,-500.0,0.00017897,2]
[358053056,1744672242762,-250.62,0.00017897,2]
[358053057,1744672242772,-500.0,0.00017897,2]
[358053058,1744672242781,-500.0,0.00017897,2]
[358053059,1744672242790,-280.84,0.00017897,2]
[358053060,1744672242800,-500.0,0.00017897,2]
[358053061,1744672242809,-500.0,0.00017897,2]
[358053062,1744672242819,-500.0,0.00017897,2]
[358053063,1744672242827,-500.0,0.00017897,2]
[358053064,1744672242837,-496.48,0.00017897,2]
[358053065,1744672242846,-500.0,0.00017897,2]
[358053066,1744672242856,-500.0,0.00017897,2]
[358053067,1744672242865,-500.0,0.00017897,2]
[358053068,1744672242874,-500.0,0.00017897,2]
[358053069,1744672242883,-500.0,0.00017897,2]
[358053070,1744672242893,-500.0,0.00017897,2]
[358053071,1744672242902,-500.0,0.00017897,2]
[358053072,1744672242911,-543.52,0.00017897,2]
[358053073,1744672242921,-500.0,0.00017897,2]
[358053074,1744672242932,-500.0,0.00017897,2]
[358053075,1744672242941,-500.0,0.00017897,2]
[358053076,1744672242951,-500.0,0.00017897,2]
[358053077,1744672242960,-500.0,0.00017897,2]
[358053078,1744672242970,-500.0,0.00017897,2]
[358053079,1744672242979,-500.0,0.00017897,2]
[358053080,1744672242988,-208.73,0.00017897,2]
[358053081,1744672242998,-500.0,0.00017897,2]
[358053082,1744672243008,-500.0,0.00017897,2]
[358053083,1744672243018,-500.0,0.00017897,2]
[358053084,1744672243028,-500.0,0.00017897,2]
[358053085,1744672243039,-500.0,0.00017897,2]
[358053086,1744672243048,-500.0,0.00017897,2]
[358053087,1744672243057,-500.0,0.00017897,2]
[358053088,1744672243066,-214.79,0.00017897,2]
[358053089,1744672243076,-200.0,0.00017897,2]
[358053090,1744672243085,-500.0,0.00017897,2]
[358053091,1744672243095,-500.0,0.00017897,2]
[358053092,1744672243104,-577.01,0.00017897,2]
[358053093,1744672243114,-531.64546574,0.00017897,2]
[358053094,1744672243125,-500.0,0.00017897,2]
[358053095,1744672243136,-500.0,0.00017897,2]
[358053096,1744672243147,-500.0,0.00017897,2]
[358053097,1744672243156,-500.0,0.00017897,2]
[358053098,1744672243166,-500.0,0.00017897,2]
[358053099,1744672243175,-500.0,0.00017897,2]
[358053100,1744672243184,-500.0,0.00017897,2]
[358053101,1744672243194,-500.0,0.00017897,2]
[358053102,1744672243203,-500.0,0.00017897,2]
[358053103,1744672243217,-500.0,0.00017897,2]
[358053104,1744672243226,-500.0,0.00017897,2]
[358053105,1744672243236,-191.07172727,0.00017897,2]
[358053106,1744672243246,-500.0,0.00017897,2]
[358053107,1744672243257,-295.69999989,0.00017897,2]
[358053108,1744672243266,-500.0,0.00017897,2]
[358053109,1744672243277,-500.0,0.00017897,2]
[358053110,1744672243286,-500.0,0.00017897,2]
[358053111,1744672243295,-500.0,0.00017897,2]
[358053112,1744672243305,-500.0,0.00017897,2]
[358053113,1744672243315,-238.09361614,0.00017897,2]
[358053114,1744672243324,-500.0,0.00017897,2]
[358053115,1744672243334,-500.0,0.00017897,2]
[358053116,1744672243343,-500.0,0.00017897,2]
[358053117,1744672243352,-500.0,0.00017897,2]
[358053118,1744672243362,-500.0,0.00017897,2]
[358053119,1744672243371,-500.0,0.00017897,2]
[358053120,1744672243379,-500.0,0.00017897,2]
[358053121,1744672243389,-500.0,0.00017897,2]
[358053122,1744672243398,-500.0,0.00017897,2]
[358053123,1744672243407,-541.12,0.00017897,2]
[358053124,1744672243417,-547.23838662,0.00017897,2]
[358053125,1744672243427,-506.82,0.00017897,2]
[358053126,1744672243437,-506.82,0.00017897,2]
[358053127,1744672243446,-506.82,0.00017897,2]
[358053128,1744672243456,-506.82,0.00017897,2]
[358053129,1744672243466,-506.82,0.00017897,2]
[358053130,1744672243475,-506.82,0.00017897,2]
[358053131,1744672243486,-506.82,0.00017897,2]
[358053132,1744672243496,-506.82,0.00017897,2]
[358053133,1744672243506,-506.82,0.00017897,2]
[358053134,1744672243516,-506.82,0.00017897,2]
[358053135,1744672243528,-506.82,0.00017897,2]
[358053136,1744672243538,-506.82,0.00017897,2]
[358053137,1744672243548,-506.82,0.00017897,2]
[358053138,1744672243558,-506.82,0.00017897,2]
[358053139,1744672243567,-506.82,0.00017897,2]
[358053140,1744672243577,-506.82,0.00017897,2]
[358053141,1744672243587,-506.82,0.00017897,2]
[358053142,1744672243596,-506.82,0.00017897,2]
[358053143,1744672243606,-506.82,0.00017897,2]
[358053144,1744672243616,-506.9,0.00017897,2]
[358053145,1744672243626,-300.0,0.00017897,2]
[358053146,1744672243636,-18877.16,0.00017897,2]
[358053147,1744672243645,-18877.16,0.00017897,2]
[358053148,1744672243655,-18877.16,0.00017897,2]
[358053149,1744672243665,-18877.16,0.00017897,2]
[358053150,1744672243675,-18877.16,0.00017897,2]
[358053151,1744672243685,-18877.16,0.00017897,2]
[358053152,1744672243694,-18877.16,0.00017897,2]
[358053153,1744672243704,-18877.16,0.00017897,2]
[358053154,1744672243715,-18877.16,0.00017897,2]
[358053155,1744672243725,-18877.16,0.00017897,2]
[358053156,1744672243734,-18877.16,0.00017897,2]
[358053157,1744672243744,-18877.16,0.00017897,2]
[358053158,1744672243754,-18877.16,0.00017897,2]
[358053159,1744672243764,-18877.16,0.00017897,2]
[358053160,1744672243775,-18877.16,0.00017897,2]
[358053161,1744672243785,-18877.16,0.00017897,2]
[358053162,1744672243795,-18877.16,0.00017897,2]
[358053163,1744672243806,-18877.16,0.00017897,2]
[358053164,1744672243816,-18877.22411208,0.00017897,2]
[358053165,1744672243825,-500.0,0.00017897,2]
[358053166,1744672243835,-500.0,0.00017897,2]
[358053167,1744672243844,-500.0,0.00017897,2]
[358053168,1744672243854,-500.0,0.00017897,2]
[358053169,1744672243863,-500.0,0.00017897,2]
[358053170,1744672243873,-500.0,0.00017897,2]
[358053171,1744672243884,-500.0,0.00017897,2]
[358053172,1744672243893,-500.0,0.00017897,2]
[358053173,1744672243903,-500.0,0.00017897,2]
[358053174,1744672243912,-500.0,0.00017897,2]
[358053175,1744672243921,-307.86,0.00017897,2]
[358053176,1744672243930,-500.0,0.00017897,2]
[358053177,1744672243939,-500.0,0.00017897,2]
[358053178,1744672243948,-399.26,0.00017897,2]
[358053179,1744672243958,-714.87,0.00017897,2]
[358053180,1744672243966,-714.87,0.00017897,2]
[358053181,1744672243975,-714.87,0.00017897,2]
[358053182,1744672243984,-714.87,0.00017897,2]
[358053183,1744672243993,-714.87,0.00017897,2]
[358053184,1744672244002,-714.87,0.00017897,2]
[358053185,1744672244011,-714.87,0.00017897,2]
[358053186,1744672244020,-714.87,0.00017897,2]
[358053187,1744672244030,-714.87,0.00017897,2]
[358053188,1744672244039,-714.87,0.00017897,2]
[358053189,1744672244048,-714.87,0.00017897,2]
[358053190,1744672244057,-714.87,0.00017897,2]
[358053191,1744672244066,-714.87,0.00017897,2]
[358053192,1744672244075,-714.87,0.00017897,2]
[358053193,1744672244085,-714.87,0.00017897,2]
[358053194,1744672244094,-714.87,0.00017897,2]
[358053195,1744672244103,-500.0,0.00017897,2]
[358053196,1744672244112,-523.05,0.00017897,2]
[358053197,1744672244121,-714.87,0.00017897,2]
[358053198,1744672244131,-714.87,0.00017897,2]
[358053199,1744672244144,-714.97319566,0.00017897,2]
[358053200,1744672244153,-500.0,0.00017897,2]
[358053201,1744672244162,-500.0,0.00017897,2]
[358053202,1744672244171,-500.0,0.00017897,2]
[358053203,1744672244181,-500.0,0.00017897,2]
[358053204,1744672244191,-500.0,0.00017897,2]
[358053205,1744672244200,-500.0,0.00017897,2]
[358053206,1744672244210,-500.0,0.00017897,2]
[358053207,1744672244220,-500.0,0.00017897,2]
[358053208,1744672244230,-500.0,0.00017897,2]
[358053209,1744672244239,-500.0,0.00017897,2]
[358053210,1744672244248,-500.0,0.00017897,2]
[358053211,1744672244257,-500.0,0.00017897,2]
[358053212,1744672244266,-500.0,0.00017897,2]
[358053213,1744672244276,-172.66,0.00017897,2]
[358053214,1744672244285,-179.19617706,0.00017897,2]
[358053224,1744672244484,-320.80382294,0.00017897,2]
[358053225,1744672244493,-500.0,0.00017897,2]
[358053226,1744672244502,-500.0,0.00017897,2]
[358053227,1744672244511,-138.59509699,0.00017897,2]
[358053228,1744672244522,-361.40490301,0.00017897,2]
[358053229,1744672244531,-500.0,0.00017897,2]
[358053230,1744672244541,-500.0,0.00017897,2]
[358053231,1744672244550,-500.0,0.00017897,2]
[358053232,1744672244559,-245.68,0.00017897,2]
[358053233,1744672244718,-1024.79,0.00017897,2]
[358053234,1744672244731,-1024.79,0.00017897,2]
[358053235,1744672244741,-1024.79,0.00017897,2]
[358053236,1744672244753,-1024.79,0.00017897,2]
[358053237,1744672244763,-1024.79,0.00017897,2]
[358053238,1744672244774,-500.0,0.00017897,2]
[358053239,1744672244784,-1024.79,0.00017897,2]
[358053240,1744672244794,-500.0,0.00017897,2]
[358053241,1744672244804,-1024.79,0.00017897,2]
[358053242,1744672244814,-212.24,0.00017897,2]
[358053243,1744672244824,-1024.79,0.00017897,2]
[358053244,1744672244834,-1024.79,0.00017897,2]
[358053245,1744672244843,-1024.79,0.00017897,2]
[358053246,1744672244853,-1024.79,0.00017897,2]
[358053247,1744672244862,-1024.79,0.00017897,2]
[358053248,1744672244871,-1024.79,0.00017897,2]
[358053249,1744672244881,-1024.79,0.00017897,2]
[358053250,1744672244890,-1024.79,0.00017897,2]
[358053251,1744672244899,-1024.79,0.00017897,2]
[358053252,1744672244909,-1024.79,0.00017897,2]
[358053253,1744672244919,-1024.79,0.00017897,2]
[358053254,1744672244929,-1024.81179042,0.00017897,2]
[358053255,1744672244939,-500.0,0.00017897,2]
[358053256,1744672244948,-500.0,0.00017897,2]
[358053258,1744672244958,-500.0,0.00017897,2]
[358053260,1744672244967,-500.0,0.00017897,2]
[358053262,1744672244977,-500.0,0.00017897,2]
[358053264,1744672244987,-500.0,0.00017897,2]
[358053266,1744672244997,-500.0,0.00017897,2]
[358053268,1744672245009,-500.0,0.00017897,2]
[358053270,1744672245019,-500.0,0.00017897,2]
[358053271,1744672245030,-500.0,0.00017897,2]
[358053272,1744672245040,-500.0,0.00017897,2]
[358053273,1744672245050,-581.3,0.00017897,2]
[358053274,1744672245059,-1459.64,0.00017897,2]
[358053275,1744672245069,-1459.64,0.00017897,2]
[358053276,1744672245079,-1459.64,0.00017897,2]
[358053277,1744672245090,-1459.64,0.00017897,2]
[358053278,1744672245100,-1459.64,0.00017897,2]
[358053279,1744672245110,-1459.64,0.00017897,2]
[358053280,1744672245120,-1459.64,0.00017897,2]
[358053281,1744672245133,-1459.64,0.00017897,2]
[358053282,1744672245142,-1459.64,0.00017897,2]
[358053283,1744672245152,-1459.64,0.00017897,2]
[358053284,1744672245162,-1459.64,0.00017897,2]
[358053285,1744672245173,-1459.64,0.00017897,2]
[358053286,1744672245183,-1459.64,0.00017897,2]
[358053287,1744672245194,-1459.64,0.00017897,2]
[358053288,1744672245204,-1459.64,0.00017897,2]
[358053289,1744672245215,-1459.64,0.00017897,2]
[358053290,1744672245226,-1459.64,0.00017897,2]
[358053291,1744672245237,-1459.64,0.00017897,2]
[358053292,1744672245248,-1459.71942104,0.00017897,2]
[358053293,1744672245259,-2357.11,0.00017897,2]
[358053294,1744672245270,-2357.11,0.00017897,2]
[358053295,1744672245280,-2357.11,0.00017897,2]
[358053296,1744672245290,-3129.72,0.00017897,2]
[358053297,1744672245300,-2357.11,0.00017897,2]
[358053298,1744672245309,-3129.72,0.00017897,2]
[358053299,1744672245319,-2357.11,0.00017897,2]
[358053300,1744672245329,-3129.72,0.00017897,2]
[358053301,1744672245339,-2357.11,0.00017897,2]
[358053302,1744672245348,-2357.11,0.00017897,2]
[358053303,1744672245358,-3129.72,0.00017897,2]
[358053305,1744672245369,-2357.11,0.00017897,2]
[358053306,1744672245379,-3129.72,0.00017897,2]
[358053307,1744672245389,-2357.11,0.00017897,2]
[358053308,1744672245398,-3129.72,0.00017897,2]
[358053309,1744672245408,-2357.11,0.00017897,2]
[358053310,1744672245418,-2357.11,0.00017897,2]
[358053311,1744672245427,-3129.72,0.00017897,2]
[358053312,1744672245437,-2357.11,0.00017897,2]
[358053313,1744672245447,-3129.72,0.00017897,2]
[358053314,1744672245457,-2357.11,0.00017897,2]
[358053315,1744672245467,-1664.68339449,0.00017897,2]
[358053324,1744672247202,-382.13328036,0.00017883,2]
[358053325,1744672247371,-117.86671964,0.00017883,2]
[358053326,1744672247381,-1465.03660551,0.00017897,2]
[358053327,1744672247391,-2357.11,0.00017897,2]
[358053328,1744672247401,-1298.47442115,0.00017897,2]
[358053329,1744672247416,-1058.63557885,0.00017897,2]
[358053330,1744672247426,-387.02619228,0.00017897,2]
[358053331,1744672247440,-913.658604,0.00017897,2]
[358053332,1744672247451,-1164.65881748,0.00017897,2]
[358053333,1744672247548,-500.0,0.000199,7]
[358053334,1744672392042,150.0,0.0002,23]
[358053335,1744672408817,-167.13,0.00017588,2]
[358053336,1744672432328,-157.86599335,0.00017766,2]
[358053337,1744672435799,893.91,0.00015157,2]
[358053338,1744672436006,893.91,0.00017421,2]
[358053339,1744672448953,200.0,0.00017054,7]
[358053340,1744672526493,218.02,0.0001701,2]
[358053341,1744672578581,166.26,0.00016971,2]
[358053342,1744672771539,-157.86599334,0.00017698,2]
[358053343,1744672975743,187.79,0.00017031,2]
[358053344,1744673110664,2438.66377096,0.000154,2]
[358053345,1744673120091,843.54304182,9e-05,2]
[358053346,1744673126054,991.21676479,0.000108,2]
[358053347,1744673128291,970.4480945,0.00011,2]
[358053348,1744673137056,3070.80644895,9e-05,2]
[358053349,1744673139338,404.0,0.00017064,2]
[358053350,1744673145649,513.89,0.00017064,2]
[358053351,1744673155776,470.36148998,6.94e-05,2]
[358053352,1744673230004,-287.63994277,0.00017698,2]
[358053353,1744673300061,805.34125131,0.000135,2]
[358053354,1744673300286,296.39265308,0.000125,2]
[358053355,1744673300941,-202.1703,0.00017698,2]
[358053356,1744673316885,215.92760015,0.0001,2]
[358053357,1744673318049,-173.72375631,0.0001761,2]
[358053358,1744673318462,2010.95190312,0.000149,2]
[358053359,1744673323985,150.58998264,0.000154,2]
[358053360,1744673327646,1361.54377132,0.00010136,2]
[358053367,1744673359190,-126.27624369,0.0001761,2]
[358053368,1744673359212,-182.94112999,0.00017698,2]
[358053372,1744673388250,375.894,0.00017698,2]
[358053376,1744673402742,16000.0,0.000195,3]
[358053377,1744673431666,-770.50192946,0.00017782,2]
[358053378,1744673431676,-1000.0,0.00017796,2]
[358053379,1744673431686,-250.0,0.00017796,2]
[358053380,1744673431696,-300.0,0.00017797,2]
[358053382,1744673431705,-300.0,0.00017797,2]
[358053384,1744673431715,-6507.0675,0.00017798,2]
[358053386,1744673431725,-163.21157066,0.00017798,2]
[358053388,1744673431734,-191.69625824,0.00017798,2]
[358053389,1744673431744,-163.21157063,0.00017832,2]
[358053390,1744673431753,-1004.31117101,0.00017857,2]
[358053391,1744673431795,-544.02,0.00017857,2]
[358053392,1744673431807,-268.11710399,0.00017857,2]
[358053393,1744673431816,-81.88289601,0.00017866,2]
[358053394,1744673431827,-81.32867462,0.00017866,2]
[358053395,1744673431838,-500.0,0.00017884,2]
[358053396,1744673431847,-500.0,0.00017884,2]
[358053397,1744673431856,-326.81296128,0.00017884,2]
[358053398,1744673431866,-1941.58080644,0.00017887,2]
[358053399,1744673431877,-524.29,0.00017887,2]
[358053400,1744673431890,-411.8444199,0.00017887,2]
[358053401,1744673431902,-904.54428544,0.00017887,2]
[358053402,1744673431912,-385.2,0.00017887,2]
[358053403,1744673431922,-168.3888056,0.00017887,2]
[358053404,1744673431932,-1518.8978264,0.00017895,2]
[358053405,1744673431943,-288.0,0.00017895,2]
[358053406,1744673431953,-500.0,0.00017896,2]
[358053407,1744673431963,-500.0,0.00017896,2]
[358053408,1744673431972,-500.0,0.00017896,2]
[358053409,1744673431981,-500.0,0.00017896,2]
[358053410,1744673431991,-500.0,0.00017896,2]
[358053411,1744673432001,-500.0,0.00017896,2]
[358053412,1744673432011,-500.0,0.00017896,2]
[358053413,1744673432022,-500.0,0.00017896,2]
[358053414,1744673432031,-500.0,0.00017896,2]
[358053415,1744673432041,-500.0,0.00017896,2]
[358053417,1744673432050,-500.0,0.00017896,2]
[358053419,1744673432060,-199.42953061,0.00017896,2]
[358053421,1744673432070,-583.6,0.00017896,2]
[358053423,1744673432079,-500.0,0.00017896,2]
[358053425,1744673432089,-500.0,0.00017896,2]
[358053426,1744673432098,-500.0,0.00017896,2]
[358053427,1744673432108,-3196.06,0.00017896,2]
[358053428,1744673432118,-500.0,0.00017896,2]
[358053429,1744673432127,-500.0,0.00017896,2]
[358053430,1744673432137,-500.0,0.00017896,2]
[358053431,1744673432146,-323.47409755,0.00017896,2]
[358053434,1744673437920,-412.42590245,0.00017896,2]
[358053435,1744673437930,-10.3240968,0.00017896,2]
[358053436,1744673437943,-489.6759032,0.00017896,2]
[358053437,1744673437954,-500.0,0.00017896,2]
[358053438,1744673437963,-500.0,0.00017896,2]
[358053439,1744673437972,-389.04065808,0.00017896,2]
[358053440,1744673437984,-110.95934192,0.00017896,2]
[358053441,1744673437993,-500.0,0.00017896,2]
[358053442,1744673438002,-500.0,0.00017896,2]
[358053443,1744673438011,-425.56065808,0.00017896,2]
[358053444,1744673438023,-100.29000064,0.00017896,2]
[358053445,1744673438032,-500.0,0.00017896,2]
[358053446,1744673438042,-500.0,0.00017896,2]
[358053447,1744673438051,-500.0,0.00017896,2]
[358053448,1744673438060,-500.0,0.00017896,2]
[358053449,1744673438070,-1201.32,0.00017896,2]
[358053450,1744673438079,-500.0,0.00017896,2]
[358053451,1744673438088,-500.0,0.00017896,2]
[358053452,1744673438099,-206.833494,0.00017896,2]
[358053453,1744673438110,-293.166506,0.00017896,2]
[358053454,1744673438119,-500.0,0.00017896,2]
[358053455,1744673438129,-151.21911543,0.00017897,2]
[358053456,1744673438138,-711.27225373,0.00017897,2]
[358053457,1744673438148,-500.0,0.00017897,2]
[358053458,1744673438158,-392.96668532,0.00017897,2]
[358053459,1744673438167,-512.37,0.00017897,2]
[358053460,1744673438177,-508.67109161,0.00017897,2]
[358053461,1744673438186,-500.0,0.00017897,2]
[358053462,1744673438195,-500.0,0.00017897,2]
[358053463,1744673438205,-500.0,0.00017897,2]
[358053464,1744673438215,-49.25750698,0.00017897,2]